[Event "NJSK 2018 Meisjes C"]
[Site "Assen, Netherlands"]
[Date "2018.05.04"]
[Round "6.7"]
[White "Arnold, Kiri"]
[Black "Velasco, Kathleen"]
[Result "0-1"]
[TimeControl "40/90m+30m+30sec/move"]
[WhiteElo "1340"]
[BlackElo "1284"]

1. d4 {[%clk 01:30:56]} {[%emt 00:00:05]} d5 {[%clk 01:30:53]} {[%emt
00:00:06]} 2. Nf3 {[%clk 01:31:20]} {[%emt 00:00:06]} Nf6 {[%clk 01:31:10]}
{[%emt 00:00:13]} 3. e3 {[%clk 01:31:32]} {[%emt 00:00:17]} g6 {[%clk
01:30:19]} {[%emt 00:01:22]} 4. Bd3 {[%clk 01:31:30]} {[%emt 00:00:31]} Bg7
{[%clk 01:30:36]} {[%emt 00:00:13]} 5. O-O {[%clk 01:31:11]} {[%emt 00:00:48]}
O-O {[%clk 01:30:46]} {[%emt 00:00:22]} 6. c3 {[%clk 01:31:24]} {[%emt
00:00:17]} Nbd7 {[%clk 01:21:18]} {[%emt 00:09:57]} 7. Nbd2 {[%clk 01:29:18]}
{[%emt 00:02:37]} c5 {[%clk 01:19:50]} {[%emt 00:01:58]} 8. e4 {[%clk
01:23:43]} {[%emt 00:06:04]} dxe4 {[%clk 01:11:04]} {[%emt 00:09:16]} 9. Nxe4
{[%clk 01:22:18]} {[%emt 00:01:55]} cxd4 {[%clk 01:08:30]} {[%emt 00:03:05]} 10.
cxd4 {[%clk 01:09:45]} {[%emt 00:13:03]} Nxe4 {[%clk 01:06:08]} {[%emt
00:02:51]} 11. Bxe4 {[%clk 01:10:13]} {[%emt 00:00:02]} Nf6 {[%clk 01:05:42]}
{[%emt 00:00:56]} 12. Bd3 {[%clk 01:02:54]} {[%emt 00:07:49]} b6 {[%clk
01:00:13]} {[%emt 00:05:59]} 13. h3 {[%clk 00:58:21]} {[%emt 00:05:03]} Bb7
{[%clk 01:00:08]} {[%emt 00:00:36]} 14. Be3 {[%clk 00:56:43]} {[%emt 00:02:07]}
Nd5 {[%clk 00:55:39]} {[%emt 00:04:59]} 15. Qd2 {[%clk 00:50:28]} {[%emt
00:06:45]} Rc8 {[%clk 00:50:29]} {[%emt 00:05:39]} 16. Rac1 {[%clk 00:46:00]}
{[%emt 00:04:59]} Qd7 {[%clk 00:44:53]} {[%emt 00:06:06]} 17. Be2 {[%clk
00:43:42]} {[%emt 00:02:49]} Rfd8 {[%clk 00:41:19]} {[%emt 00:04:03]} 18. Rfd1
{[%clk 00:36:14]} {[%emt 00:07:58]} Rxc1 {[%clk 00:26:31]} {[%emt 00:15:17]} 19.
Rxc1 {[%clk 00:29:12]} {[%emt 00:07:33]} Rc8 {[%clk 00:25:42]} {[%emt
00:01:20]} 20. a3 {[%clk 00:27:12]} {[%emt 00:02:30]} Rxc1+ {[%clk 00:24:25]}
{[%emt 00:01:46]} 21. Qxc1 {[%clk 00:27:04]} {[%emt 00:00:39]} Qd6 {[%clk
00:22:56]} {[%emt 00:01:58]} 22. Qd2 {[%clk 00:23:49]} {[%emt 00:03:45]} Nxe3
{[%clk 00:16:01]} {[%emt 00:07:25]} 23. fxe3 {[%clk 00:24:09]} {[%emt
00:00:10]} e5 {[%clk 00:15:43]} {[%emt 00:00:49]} 24. dxe5 {[%clk 00:21:09]}
{[%emt 00:03:29]} Qxd2 {[%clk 00:16:02]} {[%emt 00:00:11]} 25. Nxd2 {[%clk
00:21:33]} {[%emt 00:00:06]} Bxe5 {[%clk 00:16:27]} {[%emt 00:00:04]} 26. b3
{[%clk 00:16:52]} {[%emt 00:05:11]} Bd6 {[%clk 00:15:40]} {[%emt 00:01:18]} 27.
a4 {[%clk 00:15:17]} {[%emt 00:02:06]} Bb4 {[%clk 00:14:12]} {[%emt 00:01:58]}
28. Nf3 {[%clk 00:13:56]} {[%emt 00:01:50]} Kf8 {[%clk 00:13:13]} {[%emt
00:01:29]} 29. Kf2 {[%clk 00:13:28]} {[%emt 00:00:59]} Ke7 {[%clk 00:12:53]}
{[%emt 00:00:50]} 30. Bc4 {[%clk 00:13:18]} {[%emt 00:00:40]} f6 {[%clk
00:12:26]} {[%emt 00:00:56]} 31. Nd4 {[%clk 00:12:29]} {[%emt 00:01:19]} h5
{[%clk 00:12:08]} {[%emt 00:00:47]} 32. Ne2 {[%clk 00:12:06]} {[%emt 00:00:54]}
g5 {[%clk 00:09:17]} {[%emt 00:03:21]} 33. Nd4 {[%clk 00:10:17]} {[%emt
00:02:20]} Be4 {[%clk 00:07:57]} {[%emt 00:01:49]} 34. Ne2 {[%clk 00:09:49]}
{[%emt 00:00:58]} h4 {[%clk 00:05:31]} {[%emt 00:02:56]} 35. Nd4 {[%clk
00:09:00]} {[%emt 00:01:19]} a5 {[%clk 00:04:03]} {[%emt 00:01:59]} 36. Nf3
{[%clk 00:05:35]} {[%emt 00:03:54]} Kd6 {[%clk 00:03:17]} {[%emt 00:01:15]} 37.
Nd4 {[%clk 00:03:46]} {[%emt 00:02:20]} f5 {[%clk 00:01:12]} {[%emt 00:02:35]}
38. Ne6 {[%clk 00:00:52]} {[%emt 00:03:24]} g4 {[%clk 00:01:17]} {[%emt
00:00:25]} 39. hxg4 {[%clk 00:01:01]} {[%emt 00:00:21]} fxg4 {[%clk 00:01:44]}
{[%emt 00:00:03]} 40. Nf4 {[%clk 00:01:08]} {[%emt 00:00:23]} g3+ {[%clk
00:01:14]} {[%emt 00:01:11]} 41. Ke2 {[%clk 00:28:13]} {[%emt 00:03:14]} Bc3
{[%clk 00:30:46]} {[%emt 00:01:00]} 42. Kf1 {[%clk 00:19:46]} {[%emt 00:08:56]}
Be5 {[%clk 00:26:16]} {[%emt 00:04:59]} 43. Nh3 {[%clk 00:17:28]} {[%emt
00:02:49]} Kc5 {[%clk 00:23:44]} {[%emt 00:03:02]} 44. Nf4 {[%clk 00:08:11]}
{[%emt 00:09:47]} Bxf4 {[%clk 00:09:08]} {[%emt 00:15:06]} 45. exf4 {[%clk
00:08:39]} {[%emt 00:00:01]} Kd6 {[%clk 00:09:37]} {[%emt 00:00:02]} 46. Bg8
{[%clk 00:08:18]} {[%emt 00:00:51]} Ke7 {[%clk 00:09:32]} {[%emt 00:00:35]} 47.
Bc4 {[%clk 00:08:23]} {[%emt 00:00:25]} Kf6 {[%clk 00:09:47]} {[%emt 00:00:15]}
48. Bg8 {[%clk 00:08:35]} {[%emt 00:00:18]} Kf5 {[%clk 00:06:39]} {[%emt
00:03:38]} 49. Bc4 {[%clk 00:08:48]} {[%emt 00:00:17]} Kxf4 {[%clk 00:06:53]}
{[%emt 00:00:17]} 50. Be6 {[%clk 00:09:13]} {[%emt 00:00:04]} Bf5 {[%clk
00:05:43]} {[%emt 00:01:40]} 51. Bc4 {[%clk 00:09:08]} {[%emt 00:00:35]} Ke3
{[%clk 00:06:04]} {[%emt 00:00:08]} 52. Bf7 {[%clk 00:09:14]} {[%emt 00:00:25]}
h3 {[%clk 00:04:20]} {[%emt 00:02:14]} 53. gxh3 {[%clk 00:09:35]} {[%emt
00:00:09]} Bxh3+ {[%clk 00:04:44]} {[%emt 00:00:06]} 54. Kg1 {[%clk 00:09:59]}
{[%emt 00:00:05]} Bf5 {[%clk 00:03:09]} {[%emt 00:02:05]} 55. Bd5 {[%clk
00:10:06]} {[%emt 00:00:24]} Bc2 {[%clk 00:02:32]} {[%emt 00:01:07]} 56. Bc4
{[%clk 00:10:17]} {[%emt 00:00:19]} Kd4 {[%clk 00:02:40]} {[%emt 00:00:22]} 57.
Kg2 {[%clk 00:10:29]} {[%emt 00:00:18]} Kc3 {[%clk 00:02:54]} {[%emt 00:00:15]}
0-1

[Event "NJSK 2018 Meisjes C"]
[Site "Assen, Netherlands"]
[Date "2018.05.04"]
[Round "6.8"]
[White "Cordes, Jule"]
[Black "Jonkman Inza, Amelia Marry"]
[Result "0-1"]
[TimeControl "40/90m+30m+30sec/move"]
[WhiteElo "1551"]
[BlackElo "1222"]

1. d4 {[%clk 01:30:58]} {[%emt 00:00:01]} Nf6 {[%clk 01:30:47]} {[%emt
00:00:13]} 2. c4 {[%clk 01:31:17]} {[%emt 00:00:10]} g6 {[%clk 01:30:41]}
{[%emt 00:00:36]} 3. Nc3 {[%clk 01:31:27]} {[%emt 00:00:20]} Bg7 {[%clk
01:30:33]} {[%emt 00:00:37]} 4. Nf3 {[%clk 01:31:34]} {[%emt 00:00:23]} O-O
{[%clk 01:30:52]} {[%emt 00:00:12]} 5. Bf4 {[%clk 01:31:04]} {[%emt 00:00:59]}
d6 {[%clk 01:30:57]} {[%emt 00:00:25]} 6. e3 {[%clk 01:30:53]} {[%emt
00:00:41]} Nbd7 {[%clk 01:30:46]} {[%emt 00:00:42]} 7. Be2 {[%clk 01:30:39]}
{[%emt 00:00:44]} c6 {[%clk 01:30:02]} {[%emt 00:01:14]} 8. O-O {[%clk
01:30:42]} {[%emt 00:00:25]} Nh5 {[%clk 01:29:29]} {[%emt 00:01:05]} 9. Bg5
{[%clk 01:30:33]} {[%emt 00:00:38]} h6 {[%clk 01:28:57]} {[%emt 00:01:02]} 10.
Bh4 {[%clk 01:30:46]} {[%emt 00:00:16]} g5 {[%clk 01:26:43]} {[%emt 00:02:43]}
11. Nd2 {[%clk 01:30:10]} {[%emt 00:01:09]} Nhf6 {[%clk 01:23:55]} {[%emt
00:03:17]} 12. Bg3 {[%clk 01:30:21]} {[%emt 00:00:19]} e5 {[%clk 01:17:11]}
{[%emt 00:07:15]} 13. dxe5 {[%clk 01:15:03]} {[%emt 00:15:48]} Nxe5 {[%clk
01:14:14]} {[%emt 00:03:27]} 14. Nde4 {[%clk 01:12:44]} {[%emt 00:02:47]} Nxe4
{[%clk 01:07:44]} {[%emt 00:07:00]} 15. Nxe4 {[%clk 01:12:08]} {[%emt
00:01:06]} d5 {[%clk 01:06:28]} {[%emt 00:01:47]} 16. cxd5 {[%clk 01:11:44]}
{[%emt 00:00:54]} Qxd5 {[%clk 01:01:29]} {[%emt 00:05:29]} 17. Qxd5 {[%clk
01:11:42]} cxd5 {[%clk 01:01:42]} {[%emt 00:00:49]} 18. Nc3 {[%clk 01:09:18]}
{[%emt 00:02:53]} Be6 {[%clk 00:57:44]} {[%emt 00:04:29]} 19. Rac1 {[%clk
01:00:06]} {[%emt 00:09:42]} f5 {[%clk 00:53:59]} {[%emt 00:04:13]} 20. Nb5
{[%clk 00:44:57]} {[%emt 00:15:41]} Rad8 {[%clk 00:44:54]} {[%emt 00:09:35]} 21.
Nc7 {[%clk 00:40:04]} {[%emt 00:05:23]} Bf7 {[%clk 00:42:16]} {[%emt 00:03:08]}
22. Rfd1 {[%clk 00:29:50]} {[%emt 00:10:44]} Nc6 {[%clk 00:31:14]} {[%emt
00:11:31]} 23. h3 {[%clk 00:14:50]} {[%emt 00:15:30]} d4 {[%clk 00:20:51]}
{[%emt 00:10:53]} 24. exd4 {[%clk 00:11:30]} {[%emt 00:03:51]} Nxd4 {[%clk
00:17:32]} {[%emt 00:03:49]} 25. Bd3 {[%clk 00:07:02]} {[%emt 00:04:53]} f4
{[%clk 00:15:54]} {[%emt 00:02:12]} 26. Bh2 {[%clk 00:07:30]} {[%emt 00:00:03]}
Bxa2 {[%clk 00:13:25]} {[%emt 00:02:58]} 27. Nb5 {[%clk 00:05:04]} {[%emt
00:02:56]} Bb3 {[%clk 00:10:23]} {[%emt 00:03:33]} 28. Re1 {[%clk 00:02:53]}
{[%emt 00:02:41]} Nxb5 {[%clk 00:04:39]} {[%emt 00:06:14]} 29. Bxb5 {[%clk
00:03:20]} {[%emt 00:00:03]} Bxb2 {[%clk 00:03:14]} {[%emt 00:01:55]} 30. Rc7
{[%clk 00:03:30]} {[%emt 00:00:18]} a6 {[%clk 00:01:57]} {[%emt 00:01:48]} 31.
Bf1 {[%clk 00:03:39]} {[%emt 00:00:22]} Rd1 {[%clk 00:01:19]} {[%emt 00:01:07]}
32. Rxd1 {[%clk 00:03:53]} {[%emt 00:00:16]} Bxd1 {[%clk 00:01:43]} {[%emt
00:00:06]} 33. Rxb7 {[%clk 00:04:18]} {[%emt 00:00:06]} Bg7 {[%clk 00:01:12]}
{[%emt 00:01:02]} 34. Ra7 {[%clk 00:04:05]} {[%emt 00:00:42]} Re8 {[%clk
00:01:19]} {[%emt 00:00:23]} 35. Rxa6 {[%clk 00:01:56]} {[%emt 00:02:39]} Re1
{[%clk 00:01:15]} {[%emt 00:00:34]} 36. Ra2 {[%clk 00:02:16]} {[%emt 00:00:05]}
Bb3 {[%clk 00:01:02]} {[%emt 00:00:48]} 37. Re2 {[%clk 00:02:21]} {[%emt
00:00:18]} Rd1 {[%clk 00:01:02]} {[%emt 00:00:36]} 38. Re8+ {[%clk 00:00:47]}
{[%emt 00:02:04]} Kh7 {[%clk 00:00:47]} {[%emt 00:00:45]} 39. Rc8 {[%clk
00:01:11]} {[%emt 00:00:06]} Ba4 {[%clk 00:00:38]} {[%emt 00:00:40]} 40. Rb8
{[%clk 00:01:29]} {[%emt 00:00:08]} Kg6 {[%clk 00:00:38]} {[%emt 00:00:36]} 41.
Rb6+ {[%clk 00:25:55]} {[%emt 00:05:59]} Kh7 {[%clk 00:27:30]} {[%emt
00:03:39]} 42. h4 {[%clk 00:22:37]} {[%emt 00:03:46]} Bd4 {[%clk 00:23:51]}
{[%emt 00:04:12]} 43. Rb7 {[%clk 00:20:22]} {[%emt 00:02:45]} Kg6 {[%clk
00:21:01]} {[%emt 00:03:20]} 44. hxg5 {[%clk 00:18:57]} {[%emt 00:01:54]} hxg5
{[%clk 00:21:12]} {[%emt 00:00:19]} 45. g4 {[%clk 00:13:14]} {[%emt 00:06:13]}
Bc6 {[%clk 00:19:37]} {[%emt 00:02:06]} 46. Re7 {[%clk 00:13:07]} {[%emt
00:00:36]} Bf3 {[%clk 00:18:58]} {[%emt 00:01:10]} 47. Bg3 {[%clk 00:12:14]}
{[%emt 00:01:22]} fxg3 {[%clk 00:10:48]} {[%emt 00:08:40]} 48. Re6+ {[%clk
00:11:54]} {[%emt 00:00:46]} Bf6 {[%clk 00:08:19]} {[%emt 00:03:03]} 49. fxg3
{[%clk 00:10:52]} {[%emt 00:01:32]} Bxg4 {[%clk 00:07:08]} {[%emt 00:01:41]} 50.
Rb6 {[%clk 00:09:46]} {[%emt 00:01:35]} Bh3 {[%clk 00:06:48]} {[%emt 00:00:52]}
51. Kf2 {[%clk 00:09:32]} {[%emt 00:00:43]} Rxf1+ {[%clk 00:05:42]} {[%emt
00:01:36]} 52. Ke2 {[%clk 00:09:27]} {[%emt 00:00:36]} Kf5 {[%clk 00:04:56]}
{[%emt 00:01:15]} 53. Rb5+ {[%clk 00:09:36]} {[%emt 00:00:21]} Kg4 {[%clk
00:05:03]} {[%emt 00:00:23]} 54. Rb3 {[%clk 00:09:52]} {[%emt 00:00:13]} Be5
{[%clk 00:04:56]} {[%emt 00:00:38]} 55. Rb4+ {[%clk 00:10:04]} {[%emt
00:00:17]} Kxg3 {[%clk 00:04:50]} {[%emt 00:00:37]} 56. Rb3+ {[%clk 00:10:19]}
{[%emt 00:00:15]} Kh2 {[%clk 00:04:56]} {[%emt 00:00:25]} 57. Rxh3 {[%clk
00:10:00]} {[%emt 00:00:48]} Kxh3 {[%clk 00:04:25]} {[%emt 00:01:01]} 58. Kxf1
{[%clk 00:10:28]} {[%emt 00:00:02]} Kh2 {[%clk 00:04:33]} {[%emt 00:00:22]} 0-1

[Event "NJSK 2018 Meisjes C"]
[Site "Assen, Netherlands"]
[Date "2018.05.05"]
[Round "7.1"]
[White "Van Essen, Marieke"]
[Black "Basa, Manasvita"]
[Result "0-1"]
[TimeControl "40/90m+30m+30sec/move"]
[WhiteElo "1282"]
[BlackElo "1402"]

1. e4 {[%clk 01:30:59]} {[%emt 00:00:02]} e5 {[%clk 01:30:55]} {[%emt
00:00:20]} 2. Nf3 {[%clk 01:31:24]} {[%emt 00:00:31]} Nc6 {[%clk 01:31:21]}
{[%emt 00:00:08]} 3. Bc4 {[%clk 01:31:51]} {[%emt 00:00:06]} Bc5 {[%clk
01:31:46]} {[%emt 00:00:07]} 4. Nc3 {[%clk 01:31:21]} {[%emt 00:01:17]} Nf6
{[%clk 01:31:53]} {[%emt 00:00:32]} 5. d3 {[%clk 01:31:28]} {[%emt 00:00:31]}
a6 {[%clk 01:29:23]} {[%emt 00:03:15]} 6. a4 {[%clk 01:27:32]} {[%emt
00:02:48]} d6 {[%clk 01:29:01]} {[%emt 00:00:51]} 7. Be3 {[%clk 01:22:23]}
{[%emt 00:05:39]} Ba7 {[%clk 01:28:48]} {[%emt 00:00:44]} 8. h3 {[%clk
01:22:07]} {[%emt 00:00:46]} Be6 {[%clk 01:28:29]} {[%emt 00:00:48]} 9. Ba2
{[%clk 01:21:22]} {[%emt 00:01:15]} d5 {[%clk 01:27:40]} {[%emt 00:01:20]} 10.
exd5 {[%clk 01:11:55]} {[%emt 00:09:57]} Nxd5 {[%clk 01:27:39]} {[%emt
00:00:30]} 11. d4 {[%clk 01:08:04]} {[%emt 00:04:22]} Nxc3 {[%clk 01:23:59]}
{[%emt 00:04:10]} 12. bxc3 {[%clk 01:08:14]} {[%emt 00:00:19]} Bxa2 {[%clk
01:24:22]} {[%emt 00:00:07]} 13. Rxa2 {[%clk 01:07:57]} {[%emt 00:00:47]} e4
{[%clk 01:24:17]} {[%emt 00:00:36]} 14. Nd2 {[%clk 01:06:48]} {[%emt 00:01:39]}
Qd5 {[%clk 01:23:18]} {[%emt 00:01:29]} 15. c4 {[%clk 00:59:06]} {[%emt
00:08:12]} Qa5 {[%clk 01:22:02]} {[%emt 00:01:44]} 16. Qa1 {[%clk 00:58:28]}
{[%emt 00:01:09]} O-O {[%clk 01:20:06]} {[%emt 00:02:26]} 17. c3 {[%clk
00:56:16]} {[%emt 00:02:42]} Qf5 {[%clk 01:19:05]} {[%emt 00:01:31]} 18. g4
{[%clk 00:55:00]} {[%emt 00:01:47]} Qg6 {[%clk 01:17:54]} {[%emt 00:01:40]} 19.
Qb1 {[%clk 00:53:56]} {[%emt 00:01:36]} Rfe8 {[%clk 01:14:10]} {[%emt
00:04:13]} 20. Qxb7 {[%clk 00:52:00]} {[%emt 00:02:25]} Bb6 {[%clk 01:14:22]}
{[%emt 00:00:19]} 21. c5 {[%clk 00:44:40]} {[%emt 00:07:50]} Reb8 {[%clk
01:14:30]} {[%emt 00:00:20]} 22. Qxa8 {[%clk 00:44:24]} {[%emt 00:00:47]} Rxa8
{[%clk 01:14:54]} {[%emt 00:00:07]} 23. cxb6 {[%clk 00:44:49]} {[%emt
00:00:05]} cxb6 {[%clk 01:14:50]} {[%emt 00:00:33]} 24. O-O {[%clk 00:44:55]}
{[%emt 00:00:25]} f5 {[%clk 01:14:59]} {[%emt 00:00:21]} 25. Kh2 {[%clk
00:44:08]} {[%emt 00:01:17]} fxg4 {[%clk 01:14:42]} {[%emt 00:00:47]} 26. hxg4
{[%clk 00:44:30]} {[%emt 00:00:09]} Qxg4 {[%clk 01:15:01]} {[%emt 00:00:10]} 27.
f3 {[%clk 00:43:33]} {[%emt 00:01:27]} exf3 {[%clk 01:14:53]} {[%emt 00:00:38]}
28. Nxf3 {[%clk 00:43:44]} {[%emt 00:00:19]} Ne7 {[%clk 01:12:04]} {[%emt
00:03:19]} 29. Rg2 {[%clk 00:37:44]} {[%emt 00:06:30]} Qe4 {[%clk 01:10:38]}
{[%emt 00:01:55]} 30. Bh6 {[%clk 00:35:59]} {[%emt 00:02:15]} Nf5 {[%clk
01:10:40]} {[%emt 00:00:29]} 31. Bg5 {[%clk 00:31:36]} {[%emt 00:04:53]} Ne3
{[%clk 01:04:55]} {[%emt 00:06:15]} 32. Re1 {[%clk 00:29:26]} {[%emt 00:02:41]}
Ng4 {[%clk 01:02:03]} {[%emt 00:03:22]} 33. Kg3 {[%clk 00:28:01]} {[%emt
00:01:55]} Qf5 {[%emt 00:01:41]} 34. Rf1 {[%clk 00:25:11]} {[%emt 00:01:41]}
Rf8 {[%clk 00:59:58]} {[%emt 00:03:03]} 35. c4 {[%clk 00:20:12]} {[%emt
00:05:29]} h6 {[%clk 01:00:01]} {[%emt 00:00:28]} 36. Be7 {[%clk 00:18:35]}
{[%emt 00:02:06]} Rf7 {[%clk 00:58:40]} {[%emt 00:02:00]} 37. Bd6 {[%clk
00:18:16]} {[%emt 00:00:41]} Ne3 {[%clk 00:58:54]} {[%emt 00:00:17]} 38. Rff2
{[%clk 00:16:27]} {[%emt 00:02:18]} Qg4+ {[%clk 00:58:50]} {[%emt 00:00:34]} 39.
Kh2 {[%clk 00:16:47]} {[%emt 00:00:10]} Nxg2 {[%clk 00:59:00]} {[%emt
00:00:20]} 40. Rxg2 {[%clk 00:15:36]} {[%emt 00:01:40]} Qxf3 {[%clk 00:59:14]}
{[%emt 00:00:16]} 41. Be5 {[%clk 00:15:38]} {[%emt 00:00:29]} Qh5 {[%clk
00:57:50]} {[%emt 00:01:54]} 42. Kg1 {[%clk 00:15:57]} {[%emt 00:00:12]} g5
{[%clk 00:57:38]} {[%emt 00:00:41]} 43. d5 {[%clk 00:15:42]} {[%emt 00:00:46]}
Qd1+ {[%clk 00:58:02]} {[%emt 00:00:07]} 44. Kh2 {[%clk 00:15:54]} {[%emt
00:00:17]} Rf1 {[%clk 00:58:23]} {[%emt 00:00:09]} 45. Kh3 {[%clk 00:14:28]}
{[%emt 00:01:57]} Rh1 {[%clk 00:58:41]} {[%emt 00:00:12]} 46. Bh2 {[%clk
00:13:56]} {[%emt 00:01:01]} Qf3 {[%clk 00:58:35]} {[%emt 00:00:37]} 47. Rg3
{[%clk 00:14:03]} {[%emt 00:00:22]} g4 {[%clk 00:58:53]} {[%emt 00:00:12]} 48.
Kh4 {[%clk 00:14:26]} {[%emt 00:00:08]} Rxh2 {[%clk 00:59:16]} {[%emt
00:00:07]} 49. Rh3 {[%clk 00:14:27]} {[%emt 00:00:30]} Rxh3 {[%emt 00:00:17]}
0-1

[Event "NJSK 2018 Meisjes C"]
[Site "Assen, Netherlands"]
[Date "2018.05.05"]
[Round "7.2"]
[White "Huang, Wendy"]
[Black "Den Heijer, Rolinde"]
[Result "1-0"]
[TimeControl "40/90m+30m+30sec/move"]
[WhiteElo "1572"]
[BlackElo "1538"]

1. e4 {[%clk 01:30:58]} {[%emt 00:00:07]} e5 {[%clk 01:30:56]} {[%emt
00:00:22]} 2. Nf3 {[%clk 01:31:16]} {[%emt 00:00:34]} Nf6 {[%clk 01:31:17]}
{[%emt 00:00:17]} 3. Nxe5 {[%clk 01:30:45]} {[%emt 00:01:17]} d6 {[%clk
01:31:24]} {[%emt 00:00:28]} 4. Nf3 {[%clk 01:30:54]} {[%emt 00:00:29]} Nxe4
{[%clk 01:31:42]} {[%emt 00:00:09]} 5. d3 {[%clk 01:31:06]} {[%emt 00:00:17]}
Nf6 {[%clk 01:31:58]} {[%emt 00:00:15]} 6. Nc3 {[%clk 01:30:57]} {[%emt
00:00:51]} Be7 {[%clk 01:32:00]} {[%emt 00:00:33]} 7. Be2 {[%clk 01:31:13]}
{[%emt 00:00:13]} Nc6 {[%clk 01:32:13]} {[%emt 00:00:15]} 8. O-O {[%clk
01:31:26]} {[%emt 00:00:18]} Bf5 {[%clk 01:31:58]} {[%emt 00:00:41]} 9. Be3
{[%clk 01:28:49]} {[%emt 00:02:03]} Ng4 {[%clk 01:31:27]} {[%emt 00:00:31]} 10.
Nd4 {[%clk 01:17:42]} {[%emt 00:11:37]} Nxd4 {[%clk 01:26:49]} {[%emt
00:05:08]} 11. Bxd4 {[%clk 01:12:10]} {[%emt 00:06:02]} Nf6 {[%clk 01:25:22]}
{[%emt 00:01:58]} 12. Bf3 {[%clk 01:09:56]} {[%emt 00:02:44]} c6 {[%clk
01:23:27]} {[%emt 00:02:55]} 13. Bxf6 {[%clk 01:08:49]} {[%emt 00:02:09]} Bxf6
{[%clk 01:22:47]} {[%emt 00:01:06]} 14. Re1+ {[%clk 01:08:51]} {[%emt
00:00:28]} Be7 {[%clk 01:21:53]} {[%emt 00:01:25]} 15. Qe2 {[%clk 01:08:27]}
{[%emt 00:00:54]} Qd7 {[%clk 01:21:10]} {[%emt 00:01:13]} 16. d4 {[%clk
01:03:04]} {[%emt 00:05:53]} Kd8 {[%clk 01:10:00]} {[%emt 00:11:40]} 17. d5
{[%clk 01:01:28]} {[%emt 00:02:07]} Rb8 {[%clk 01:08:14]} {[%emt 00:02:16]} 18.
dxc6 {[%clk 00:56:15]} {[%emt 00:05:41]} bxc6 {[%clk 01:08:23]} {[%emt
00:00:23]} 19. Bxc6 {[%clk 00:52:45]} {[%emt 00:04:00]} Qe6 {[%clk 01:04:42]}
{[%emt 00:04:12]} 20. Qa6 {[%clk 00:50:13]} {[%emt 00:03:01]} Qc8 {[%clk
01:02:36]} {[%emt 00:02:36]} 21. Qxa7 {[%clk 00:49:33]} {[%emt 00:01:10]} Bf6
{[%clk 01:01:42]} {[%emt 00:01:24]} 22. Nd5 {[%clk 00:47:22]} {[%emt 00:02:41]}
Be6 {[%clk 01:00:27]} {[%emt 00:01:45]} 23. Qa5+ {[%clk 00:47:13]} {[%emt
00:00:40]} Qc7 {[%clk 00:59:48]} {[%emt 00:01:09]} 24. Qxc7# {[%clk 00:47:35]}
{[%emt 00:00:07]} 1-0

[Event "NJSK 2018 Meisjes C"]
[Site "Assen, Netherlands"]
[Date "2018.05.05"]
[Round "7.3"]
[White "Bogouslavskii, Veronique"]
[Black "De Putter, Nina"]
[Result "0-1"]
[TimeControl "40/90m+30m+30sec/move"]
[WhiteElo "1004"]
[BlackElo "1672"]

1. d4 {[%clk 01:30:58]} {[%emt 00:00:04]} d5 {[%clk 01:30:56]} {[%emt
00:00:13]} 2. c4 {[%clk 01:31:23]} {[%emt 00:00:24]} c6 {[%clk 01:31:21]}
{[%emt 00:00:21]} 3. Nc3 {[%clk 01:31:49]} {[%emt 00:00:07]} Nf6 {[%clk
01:31:45]} {[%emt 00:00:10]} 4. Nf3 {[%clk 01:31:55]} {[%emt 00:00:35]} e6
{[%clk 01:32:10]} {[%emt 00:00:07]} 5. e3 {[%clk 01:32:13]} {[%emt 00:00:17]}
Nbd7 {[%clk 01:32:32]} {[%emt 00:00:08]} 6. Bd3 {[%clk 01:32:11]} {[%emt
00:00:39]} Bd6 {[%clk 01:32:52]} {[%emt 00:00:10]} 7. O-O {[%clk 01:31:06]}
{[%emt 00:01:53]} O-O {[%clk 01:33:12]} {[%emt 00:00:10]} 8. Qc2 {[%clk
01:31:07]} {[%emt 00:00:35]} dxc4 {[%clk 01:33:19]} {[%emt 00:00:19]} 9. Bxc4
{[%clk 01:31:27]} {[%emt 00:00:15]} Qe7 {[%clk 01:33:21]} {[%emt 00:00:22]} 10.
Bd3 {[%clk 01:30:05]} {[%emt 00:01:31]} e5 {[%clk 01:32:45]} {[%emt 00:00:40]}
11. Re1 {[%clk 01:26:42]} {[%emt 00:03:02]} Re8 {[%clk 01:31:34]} {[%emt
00:01:41]} 12. dxe5 {[%clk 01:25:07]} {[%emt 00:02:05]} Nxe5 {[%clk 01:31:48]}
{[%emt 00:00:16]} 13. Nxe5 {[%clk 01:15:03]} {[%emt 00:10:35]} Bxe5 {[%clk
01:22:35]} {[%emt 00:09:42]} 14. e4 {[%clk 01:14:17]} {[%emt 00:01:17]} Ng4
{[%clk 01:16:20]} {[%emt 00:06:43]} 15. h3 {[%clk 01:13:00]} {[%emt 00:01:49]}
Qh4 {[%clk 01:14:59]} {[%emt 00:01:50]} 16. hxg4 {[%clk 00:44:18]} {[%emt
00:29:13]} Qh2+ {[%clk 01:12:06]} {[%emt 00:03:22]} 17. Kf1 {[%clk 00:44:40]}
{[%emt 00:00:08]} Qh1+ {[%clk 01:07:57]} {[%emt 00:04:40]} 18. Ke2 {[%clk
00:45:01]} {[%emt 00:00:09]} Bxg4+ {[%clk 01:08:19]} {[%emt 00:00:07]} 19. f3
{[%clk 00:39:39]} {[%emt 00:05:51]} Qxg2+ {[%clk 01:08:22]} {[%emt 00:00:28]}
20. Kd1 {[%clk 00:39:36]} {[%emt 00:00:30]} Bxf3+ {[%clk 01:08:21]} {[%emt
00:00:35]} 21. Ne2 {[%clk 00:39:03]} {[%emt 00:01:02]} Bg3 {[%clk 01:08:10]}
{[%emt 00:00:41]} 22. b3 {[%clk 00:33:36]} {[%emt 00:05:57]} Bxe1 {[%clk
01:07:56]} {[%emt 00:00:45]} 23. Kxe1 {[%clk 00:33:26]} {[%emt 00:00:40]} Bxe2
{[%clk 01:07:55]} {[%emt 00:00:31]} 24. Bxe2 {[%clk 00:29:09]} {[%emt
00:04:47]} Rxe4 {[%clk 01:08:02]} {[%emt 00:00:22]} 25. Kd1 {[%clk 00:27:29]}
{[%emt 00:02:12]} Rd8+ {[%clk 01:07:57]} {[%emt 00:00:33]} 26. Bd2 {[%clk
00:24:45]} {[%emt 00:03:14]} Qxe2+ {[%clk 01:08:21]} {[%emt 00:00:07]} 27. Kc1
{[%clk 00:25:03]} {[%emt 00:00:12]} Red4 {[%clk 01:07:56]} {[%emt 00:00:54]} 28.
Kb1 {[%clk 00:24:12]} {[%emt 00:01:22]} Rxd2 {[%clk 01:08:05]} {[%emt
00:00:21]} 29. Qc1 {[%clk 00:23:30]} {[%emt 00:01:12]} Rd1 {[%clk 01:08:23]}
{[%emt 00:00:12]} 30. Qxd1 {[%clk 00:23:55]} {[%emt 00:00:04]} Rxd1# {[%clk
01:08:49]} {[%emt 00:00:05]} 0-1